bitfinex/quotes_BTCUSD_20241211
["timestamp","ask_amount","ask_price","bid_price","bid_amount"]
[1733939285786,0.13117509,100300.0,100280.0,0.25574234]
[1733939285993,0.33857809,100300.0,100280.0,0.25574234]
[1733939286205,0.33457809,100300.0,100280.0,0.25574234]
[1733939286664,0.004,100290.0,100280.0,0.25574234]
[1733939286970,0.001,100290.0,100280.0,0.25574234]
[1733939287963,0.001,100290.0,100280.0,0.30560234]
[1733939288216,0.13917509,100300.0,100280.0,0.30560234]
[1733939288474,0.14317509,100300.0,100280.0,0.30560234]
[1733939288736,0.13517509,100300.0,100280.0,0.30560234]
[1733939288956,0.004,100290.0,100280.0,0.30560234]
[1733939289169,0.13117509,100300.0,100280.0,0.30560234]
[1733939289372,0.001,100290.0,100280.0,0.30560234]
[1733939289595,0.001,100290.0,100280.0,0.30104022]
[1733939289818,0.13917509,100300.0,100280.0,0.35089822]
[1733939290027,0.012,100300.0,100290.0,0.199855]
[1733939290233,0.012,100300.0,100290.0,0.42806036]
[1733939290463,0.012,100300.0,100290.0,0.42706345]
[1733939291273,0.13117509,100310.0,100290.0,0.47691445]
[1733939291506,0.13117509,100310.0,100290.0,0.52676945]
[1733939292260,0.13117509,100310.0,100290.0,0.52776945]
[1733939292690,0.13517509,100310.0,100290.0,0.52676945]
[1733939293066,0.13617509,100310.0,100290.0,0.52676945]
[1733939293849,0.13560484,100310.0,100290.0,0.47691145]
[1733939295927,0.13560484,100310.0,100290.0,0.42705945]
[1733939296347,0.13560484,100310.0,100290.0,0.47691445]
[1733939296972,0.13560484,100310.0,100290.0,0.47691245]
[1733939297821,0.13560484,100310.0,100290.0,0.39641245]
[1733939298040,0.13060484,100300.0,100290.0,0.15]
[1733939299112,0.20960484,100310.0,100290.0,0.199855]
[1733939299321,0.13060484,100310.0,100300.0,0.00099698]
[1733939299532,0.13060484,100310.0,100290.0,0.39861245]
[1733939299740,0.13060484,100310.0,100290.0,0.39948532]
[1733939299964,0.13060484,100310.0,100290.0,0.44933832]
[1733939300166,0.13060484,100310.0,100290.0,0.39948532]
[1733939300379,0.13060484,100310.0,100290.0,0.34963233]
[1733939300580,0.13060484,100310.0,100290.0,0.39948533]
[1733939300808,0.13460484,100310.0,100290.0,0.39848533]
[1733939301013,0.13560484,100310.0,100290.0,0.39848533]
[1733939301224,0.22394149,100310.0,100290.0,0.39848533]
[1733939301431,0.22394149,100310.0,100290.0,0.29878033]
[1733939301637,0.50352349,100310.0,100290.0,0.25118033]
[1733939301859,0.41518684,100310.0,100290.0,0.25118033]
[1733939302118,0.13060484,100300.0,100290.0,0.00087188]
[1733939302547,0.11816492,100300.0,100290.0,0.00087188]
[1733939303943,0.11816492,100300.0,100290.0,0.00271306]
[1733939304291,0.12216492,100300.0,100290.0,0.00271306]
[1733939304648,0.12216492,100300.0,100290.0,0.00371306]
[1733939305061,0.12216492,100300.0,100290.0,0.00271306]
[1733939305486,0.12316492,100300.0,100290.0,0.00271306]
[1733939306464,0.32256592,100300.0,100290.0,0.00271306]
[1733939308310,0.12316492,100300.0,100290.0,0.00271306]
[1733939308486,0.005,100300.0,100290.0,0.30287651]
[1733939308688,0.005,100300.0,100290.0,0.43367651]
[1733939308902,0.005,100300.0,100290.0,0.43367652]
[1733939309303,0.005,100300.0,100290.0,0.43367653]
[1733939310942,0.005,100300.0,100290.0,0.43367654]
[1733939311676,0.005,100300.0,100290.0,0.43367655]
[1733939312794,0.001,100300.0,100290.0,0.43367655]
[1733939313220,0.005,100300.0,100290.0,0.43367655]
[1733939313422,0.13445686,100320.0,100300.0,0.15]
[1733939313631,0.19766492,100340.0,100320.0,0.15]
[1733939313806,0.24666492,100350.0,100330.0,0.15014345]
[1733939313976,0.0795,100350.0,100340.0,0.15]
[1733939314196,0.11816492,100350.0,100340.0,0.2025431]
[1733939314406,0.44844792,100360.0,100340.0,0.30285155]
[1733939314640,0.44844792,100360.0,100340.0,0.25302155]
[1733939314641,0.46426958,100360.0,100340.0,0.25302155]
[1733939314843,0.46426958,100360.0,100340.0,0.30301655]
[1733939315246,0.004,100350.0,100340.0,0.30301655]
[1733939315569,0.004,100350.0,100340.0,0.25318655]
[1733939315903,0.004,100350.0,100340.0,0.30301655]
[1733939316088,0.004,100350.0,100340.0,0.39250878]
[1733939316461,0.009,100350.0,100340.0,0.34267877]
[1733939316664,0.26498658,100360.0,100340.0,0.25318654]
[1733939316665,0.46826958,100360.0,100340.0,0.25318654]
[1733939316979,0.004,100350.0,100340.0,0.30301654]
[1733939317377,0.26498658,100360.0,100340.0,0.30401654]
[1733939317584,0.46426858,100360.0,100340.0,0.30401654]
[1733939317981,0.46426858,100360.0,100340.0,0.25318654]
[1733939318206,0.001,100350.0,100340.0,0.25318654]
[1733939318589,0.001,100350.0,100340.0,0.25318653]
[1733939319602,0.67156058,100360.0,100340.0,0.25318653]
[1733939319823,0.66756058,100360.0,100340.0,0.25318653]
[1733939320034,0.004,100350.0,100340.0,0.25318653]
[1733939320262,0.12216492,100350.0,100340.0,0.00287808]
[1733939320478,0.203302,100350.0,100340.0,0.00287808]
[1733939320685,0.282202,100350.0,100340.0,0.00287808]
[1733939321965,0.20106492,100350.0,100340.0,0.00287808]
[1733939322179,0.0829,100350.0,100340.0,0.05270808]
[1733939322426,0.0829,100350.0,100340.0,0.00287808]
[1733939322427,0.12316492,100350.0,100340.0,0.00287808]
[1733939324150,0.32246692,100350.0,100340.0,0.00287808]
[1733939324560,0.12316492,100350.0,100340.0,0.00287808]
[1733939326956,0.12316492,100350.0,100340.0,0.20270808]
[1733939327188,0.005,100350.0,100340.0,0.15287808]
[1733939327356,0.12316492,100350.0,100340.0,0.15287808]
[1733939327570,0.005,100350.0,100340.0,0.15287808]
[1733939327787,0.204302,100350.0,100340.0,0.15287808]
[1733939328182,0.44081839,100350.0,100340.0,0.00287808]
[1733939328524,0.58992684,100350.0,100340.0,0.00287808]
[1733939328638,0.45291045,100350.0,100340.0,0.00853397]
[1733939329468,0.19966492,100350.0,100340.0,0.00853397]
[1733939329876,0.0815,100350.0,100340.0,0.00853397]
[1733939330076,0.280802,100350.0,100340.0,0.00853397]
[1733939331246,0.19966492,100350.0,100340.0,0.00853397]
[1733939331615,0.12316492,100350.0,100340.0,0.00853397]
[1733939335507,0.005,100350.0,100340.0,0.30867242]
[1733939335749,0.005,100350.0,100340.0,0.30867241]
[1733939336247,0.005,100350.0,100340.0,0.3086724]
[1733939336505,0.13398658,100360.0,100350.0,0.15]
[1733939336738,0.13398658,100360.0,100350.0,0.15836895]
[1733939336984,0.13398658,100360.0,100350.0,0.15836894]
[1733939337697,0.13398658,100360.0,100350.0,0.15836893]
[1733939338191,0.13798658,100360.0,100350.0,0.15836892]
[1733939339042,0.02082166,100360.0,100350.0,0.30850236]
[1733939339269,0.02082166,100360.0,100350.0,0.30850235]
[1733939339472,0.02082166,100360.0,100350.0,0.30850234]
[1733939340130,0.02082166,100360.0,100350.0,0.30850233]
[1733939341178,0.02082166,100360.0,100350.0,0.30850232]
[1733939341615,0.005,100360.0,100350.0,0.38910232]
[1733939341816,0.005,100360.0,100350.0,0.4345023]
[1733939342180,0.005,100360.0,100350.0,0.43450228]
[1733939342374,0.005,100360.0,100350.0,0.43450227]
[1733939343371,0.005,100360.0,100350.0,0.43450226]
[1733939344275,0.00275034,100360.0,100350.0,0.43450226]
[1733939344477,0.00275034,100360.0,100350.0,0.43450225]
[1733939345530,0.00275034,100360.0,100350.0,0.43870682]
[1733939345852,0.00275034,100360.0,100350.0,0.43870681]
[1733939346658,0.00275034,100360.0,100350.0,0.4387068]
[1733939346865,0.00275034,100360.0,100350.0,0.43870679]
[1733939347064,0.00275034,100360.0,100350.0,0.58870679]
[1733939347271,0.00275034,100360.0,100350.0,0.58870678]
[1733939347478,0.00275034,100360.0,100350.0,0.58870677]
[1733939347902,0.00275034,100360.0,100350.0,0.60818416]
[1733939348111,0.00275034,100360.0,100350.0,0.60818415]
[1733939349120,0.00275034,100360.0,100350.0,0.60818414]
[1733939349531,0.00275034,100360.0,100350.0,0.60818413]
[1733939349876,0.00275034,100360.0,100350.0,0.45818413]
[1733939350131,0.00275034,100360.0,100350.0,0.60818413]
[1733939350335,0.00275034,100360.0,100350.0,0.60818412]
[1733939350964,0.00275034,100360.0,100350.0,0.16270673]
[1733939351174,0.00275034,100360.0,100350.0,0.16270672]
[1733939351379,0.00275034,100360.0,100350.0,0.16270671]
[1733939352125,0.16801526,100360.0,100350.0,0.01257326]
[1733939352337,0.00275034,100360.0,100350.0,0.01257326]
[1733939352496,0.00275034,100360.0,100350.0,0.16370317]
[1733939352710,0.00275034,100360.0,100350.0,0.16370316]
[1733939353682,0.00275034,100360.0,100350.0,0.31370316]
[1733939353883,0.00275034,100360.0,100350.0,0.31270669]
[1733939354205,0.00275034,100360.0,100350.0,0.31270668]
[1733939355497,0.00275034,100360.0,100350.0,0.31270667]
[1733939358954,0.00275034,100360.0,100350.0,0.31270666]
[1733939361431,0.00275034,100360.0,100350.0,0.26288165]
[1733939361926,0.00275034,100360.0,100350.0,0.31270664]
[1733939362379,0.00275034,100360.0,100350.0,0.31270663]
[1733939363823,0.00275034,100360.0,100350.0,0.31270662]
[1733939365291,0.00275034,100360.0,100350.0,0.31270661]
[1733939365496,0.00275034,100360.0,100350.0,0.3127066]
[1733939365701,0.12091526,100360.0,100350.0,0.16257315]
[1733939365948,0.24241526,100360.0,100350.0,0.01257314]
[1733939366164,0.12425034,100360.0,100350.0,0.01257314]
[1733939366492,0.32353234,100360.0,100350.0,0.01257314]
[1733939366832,0.12425034,100360.0,100350.0,0.01257314]
[1733939367300,0.24241526,100360.0,100350.0,0.01257314]
[1733939367519,0.12425034,100360.0,100350.0,0.01257314]
[1733939367895,0.32353234,100360.0,100350.0,0.01257314]
[1733939369061,0.33857115,100360.0,100350.0,0.01257314]
[1733939369487,0.36157115,100360.0,100350.0,0.01257314]
[1733939370223,0.36130176,100360.0,100350.0,0.01257314]
[1733939370483,0.36130176,100360.0,100350.0,0.01257313]
[1733939371274,0.38089179,100350.0,100340.0,0.000165]
[1733939371698,0.38089179,100350.0,100340.0,0.01273813]
[1733939372337,0.18742687,100350.0,100340.0,0.3138731]
[1733939372551,0.18742687,100350.0,100340.0,0.31387658]
[1733939372965,0.18742687,100350.0,100340.0,0.26404658]
[1733939373225,0.18742687,100350.0,100340.0,0.31387658]
[1733939373654,0.18742687,100350.0,100340.0,0.31487658]
[1733939373867,0.18742687,100350.0,100340.0,0.26504658]
[1733939374076,0.18742687,100350.0,100340.0,0.31487658]
[1733939374921,0.30555179,100350.0,100340.0,0.16473813]
[1733939375133,0.38555179,100350.0,100340.0,0.16473813]
[1733939375345,0.38555179,100350.0,100340.0,0.01473813]
[1733939376640,0.58485379,100350.0,100340.0,0.01473813]
[1733939377891,0.77321371,100350.0,100340.0,0.01473813]
[1733939378161,0.92321371,100350.0,100340.0,0.01473813]
[1733939378375,0.53588887,100350.0,100340.0,0.01473813]
[1733939378584,0.43175179,100350.0,100340.0,0.01473813]
[1733939378790,0.31358687,100350.0,100340.0,0.01473813]
[1733939378998,0.51288887,100350.0,100340.0,0.01373813]
[1733939379528,0.43575179,100350.0,100340.0,0.01373813]
[1733939379753,0.43575179,100350.0,100340.0,0.06356813]
[1733939379967,0.38555179,100350.0,100340.0,0.21256813]
[1733939380182,0.38955179,100350.0,100340.0,0.16273813]
[1733939381242,0.39055179,100350.0,100340.0,0.16273813]
[1733939382084,0.39055179,100350.0,100340.0,0.21256813]
[1733939382975,0.19238687,100350.0,100340.0,0.31287658]
[1733939383416,0.19238687,100350.0,100340.0,0.36097658]
[1733939383841,0.18838687,100350.0,100340.0,0.36057658]
[1733939384061,0.18838687,100350.0,100340.0,0.35664283]
[1733939384284,0.19138687,100350.0,100340.0,0.44591416]
[1733939384493,0.18838687,100350.0,100340.0,0.66002115]
[1733939384940,0.18838687,100350.0,100340.0,0.5270871]
[1733939385152,0.18738687,100350.0,100340.0,0.43784281]
[1733939385364,0.18738687,100350.0,100340.0,0.43884281]
[1733939385837,0.18738687,100350.0,100340.0,0.4388428]
[1733939386888,0.18738687,100350.0,100340.0,0.52808708]
[1733939387099,0.18738687,100350.0,100340.0,0.54292994]
[1733939387721,0.18738687,100350.0,100340.0,0.32538566]
[1733939388820,0.18738687,100350.0,100340.0,0.32538565]
[1733939389028,0.18738687,100350.0,100340.0,0.40648565]
[1733939390110,0.18738687,100350.0,100340.0,0.54524677]
[1733939390314,0.18738687,100350.0,100340.0,0.54524676]
[1733939391013,0.18738687,100350.0,100340.0,0.45598564]
[1733939391225,0.18738687,100350.0,100340.0,0.54524676]
[1733939391426,0.18738687,100350.0,100340.0,0.54524675]
[1733939391845,0.18738687,100350.0,100340.0,0.67913843]
[1733939392292,0.18738687,100350.0,100340.0,0.54524675]
[1733939392708,0.18738687,100350.0,100340.0,0.67913843]
[1733939392909,0.18738687,100350.0,100340.0,0.54524675]
[1733939393124,0.18738687,100350.0,100340.0,0.54524674]
[1733939393381,0.18738687,100350.0,100340.0,0.67913842]
[1733939393585,0.18738687,100350.0,100340.0,0.54524674]
[1733939393804,0.18738687,100350.0,100340.0,0.67913842]
[1733939394207,0.18738687,100350.0,100340.0,0.67913841]
[1733939396058,0.18738687,100350.0,100340.0,0.6791384]
[1733939397346,0.18738687,100350.0,100340.0,0.85766064]
[1733939397559,0.18738687,100350.0,100340.0,1.10653724]
[1733939397776,0.18738687,100350.0,100340.0,1.32763343]
[1733939397980,0.18738687,100350.0,100340.0,1.32774093]
[1733939398180,0.18738687,100350.0,100340.0,1.10448062]
[1733939398387,0.18738687,100350.0,100340.0,1.32670994]
[1733939398847,0.18738687,100350.0,100340.0,1.32570652]
[1733939399059,0.18838687,100350.0,100340.0,1.32970652]
[1733939399275,0.18838687,100350.0,100340.0,1.06192316]
[1733939399486,0.08873687,100350.0,100340.0,1.21192315]
[1733939399706,0.08220687,100350.0,100340.0,1.25748061]
[1733939399908,0.07882446,100350.0,100340.0,1.2574806]
[1733939400144,4.6e-07,100350.0,100340.0,1.2564806]
[1733939400350,4.6e-07,100350.0,100340.0,1.2794806]
[1733939400548,0.1256,100400.0,100390.0,0.199805]
[1733939400759,0.1256,100400.0,100390.0,0.30110942]
[1733939401010,0.1256,100400.0,100390.0,0.30011345]
[1733939401232,0.1256,100400.0,100390.0,0.30851759]
[1733939401462,0.0004,100410.0,100400.0,0.0498]
[1733939401669,0.0004,100410.0,100400.0,0.30110426]
[1733939401875,0.00051009,100410.0,100400.0,0.30010845]
[1733939402932,0.00451009,100410.0,100400.0,0.30010845]
[1733939403139,0.00051009,100410.0,100400.0,0.30010845]
[1733939403348,0.00051009,100410.0,100400.0,0.30410845]
[1733939403818,0.00051009,100410.0,100400.0,0.30010845]
[1733939404044,0.00051009,100410.0,100400.0,0.45110845]
[1733939404259,0.00051009,100410.0,100400.0,0.69983655]
[1733939404478,0.00051009,100410.0,100400.0,0.69883655]
[1733939404921,0.00051009,100410.0,100400.0,0.70183655]
[1733939405560,0.00051009,100410.0,100400.0,0.70583655]
[1733939407858,0.00051009,100410.0,100400.0,0.71423983]
[1733939408128,0.00051009,100410.0,100400.0,0.71423982]
[1733939408732,0.00051009,100410.0,100400.0,0.71423981]
[1733939408965,0.00051009,100410.0,100400.0,0.7142398]
[1733939409149,0.00051009,100410.0,100400.0,0.71423979]
[1733939409359,0.00051009,100410.0,100400.0,0.71423977]
[1733939409563,0.00051009,100410.0,100400.0,0.71423976]
[1733939409768,0.00051009,100410.0,100400.0,0.72814895]
[1733939409969,0.00051009,100410.0,100400.0,0.72814889]
[1733939410222,0.00051009,100410.0,100400.0,0.72814888]
[1733939410446,0.00051009,100410.0,100400.0,0.72814882]
[1733939410654,0.00051009,100410.0,100400.0,0.72814878]
[1733939410858,0.00051009,100410.0,100400.0,0.72814876]
[1733939411060,0.00051009,100410.0,100400.0,0.72814875]
[1733939411273,0.00051009,100410.0,100400.0,0.72814874]
[1733939411477,0.00051009,100410.0,100400.0,0.72814872]
[1733939411683,0.00051009,100410.0,100400.0,0.72814868]
[1733939411890,0.00051009,100410.0,100400.0,0.72814867]
[1733939412305,0.00051009,100410.0,100400.0,0.72814866]
[1733939412511,0.00051009,100410.0,100400.0,0.72814863]
[1733939412718,0.00051009,100410.0,100400.0,0.72814861]
[1733939412927,0.00051009,100410.0,100400.0,0.85998368]
[1733939413136,0.00051009,100410.0,100400.0,0.85998367]
[1733939413399,0.00051009,100410.0,100400.0,0.88298361]
[1733939413635,0.00051009,100410.0,100400.0,0.96558349]
[1733939413854,0.00051009,100410.0,100400.0,0.98458339]
[1733939414058,0.00051009,100410.0,100400.0,0.98458334]
[1733939414298,0.00051009,100410.0,100400.0,0.98158332]
[1733939414495,0.00051009,100410.0,100400.0,0.98458329]
[1733939414701,0.00051009,100410.0,100400.0,0.98458326]
[1733939414919,0.00051009,100410.0,100400.0,0.98058323]
[1733939415118,0.00051009,100410.0,100400.0,0.98458321]
[1733939415324,0.00051009,100410.0,100400.0,0.9845832]
[1733939415547,0.00051009,100410.0,100400.0,0.98058317]
[1733939415746,0.00151009,100410.0,100400.0,0.98558316]
[1733939415956,0.00151009,100410.0,100400.0,0.98558314]
[1733939416160,0.00151009,100410.0,100400.0,0.99058313]
[1733939416382,0.00151009,100410.0,100400.0,0.9905831]
[1733939416587,0.00151009,100410.0,100400.0,0.99058308]
[1733939416809,0.00151009,100410.0,100400.0,0.99058307]
[1733939417021,0.00151009,100410.0,100400.0,0.99058306]
[1733939417237,9e-08,100410.0,100400.0,0.79089149]
[1733939417476,9e-08,100410.0,100400.0,0.8902914]
[1733939417714,9e-08,100410.0,100400.0,0.89029137]
[1733939417932,9e-08,100410.0,100400.0,0.89029132]
[1733939418142,9e-08,100410.0,100400.0,0.89029131]
[1733939418382,9e-08,100410.0,100400.0,0.86729128]
[1733939418614,9e-08,100410.0,100400.0,0.45314773]
[1733939418839,9e-08,100410.0,100400.0,0.4531477]
[1733939419048,9e-08,100410.0,100400.0,0.42023837]
[1733939419278,0.08240009,100410.0,100400.0,0.17151025]
[1733939419484,0.08240009,100410.0,100400.0,0.17151024]
[1733939419706,0.08240009,100410.0,100400.0,0.17151023]
[1733939419901,0.08240009,100410.0,100400.0,0.17151022]
[1733939420121,0.08240009,100410.0,100400.0,0.17151021]
[1733939420556,0.08240009,100410.0,100400.0,0.15851021]
[1733939420557,0.0824,100410.0,100400.0,0.15851021]
[1733939420773,0.0824,100410.0,100400.0,0.16151021]
[1733939420984,0.0824,100410.0,100400.0,0.1645102]
[1733939421200,0.20056492,100410.0,100400.0,0.01440175]
[1733939421407,0.39974792,100410.0,100400.0,0.01440175]
[1733939421836,0.281583,100410.0,100400.0,0.01440175]
[1733939422050,0.326883,100410.0,100400.0,0.01440175]
[1733939422489,0.326883,100410.0,100400.0,0.01140175]
[1733939422703,0.24586492,100410.0,100400.0,0.01140175]
[1733939422911,0.24586492,100410.0,100400.0,0.06120175]
[1733939423128,0.24586492,100410.0,100400.0,0.06120174]
[1733939423560,0.24586492,100410.0,100400.0,0.21120174]
[1733939423852,0.24786492,100410.0,100400.0,0.20820173]
[1733939424052,0.25186492,100410.0,100400.0,0.20820172]
[1733939424469,0.25186492,100410.0,100400.0,0.20820171]
[1733939425503,0.25186492,100410.0,100400.0,0.2082017]
[1733939425725,0.24986492,100410.0,100400.0,0.2082017]
[1733939425942,0.24986492,100410.0,100400.0,0.20820169]
[1733939426160,0.004,100410.0,100400.0,0.30851014]
[1733939426383,0.004,100410.0,100400.0,0.30851013]
[1733939426588,0.004,100410.0,100400.0,0.30851011]
[1733939426798,0.004,100410.0,100400.0,0.3085101]
[1733939427034,0.004,100410.0,100400.0,0.30851009]
[1733939427241,0.004,100410.0,100400.0,0.30851007]
[1733939427446,0.21546492,100420.0,100400.0,0.35831005]
[1733939427658,0.00565867,100410.0,100400.0,0.31162012]
[1733939427863,0.00565867,100410.0,100400.0,0.3116201]
[1733939428075,0.42405319,100420.0,100400.0,0.35841809]
[1733939428288,0.00665884,100410.0,100400.0,0.30861808]
[1733939428488,0.001,100410.0,100400.0,0.30861807]
[1733939428693,0.001,100410.0,100400.0,0.30861806]
[1733939429108,0.001,100410.0,100400.0,0.30861805]
[1733939429522,0.001,100410.0,100400.0,0.30861804]
[1733939429730,0.001,100410.0,100400.0,0.30861803]
[1733939429933,0.001,100410.0,100400.0,0.30861802]
[1733939430149,0.0973,100420.0,100400.0,0.40821402]
[1733939430374,0.00566791,100410.0,100400.0,0.35841598]
[1733939430584,0.00566791,100410.0,100400.0,0.75713876]
[1733939430809,0.019,100420.0,100410.0,0.199795]
[1733939430997,0.019,100420.0,100410.0,0.30850481]
[1733939431204,0.019,100420.0,100410.0,0.30850479]
[1733939431746,0.019,100420.0,100410.0,0.30850478]
[1733939431995,0.019,100420.0,100410.0,0.30850477]
[1733939432236,0.02,100420.0,100410.0,0.30850476]
[1733939432479,0.02,100420.0,100410.0,0.30850475]
[1733939432714,0.02,100420.0,100410.0,0.30850474]
[1733939433195,0.02,100420.0,100410.0,0.55720543]
[1733939433457,0.02,100420.0,100410.0,0.5572054]
[1733939433664,0.02,100420.0,100410.0,0.55720539]
[1733939433878,0.019,100420.0,100410.0,0.55720538]
[1733939434125,0.02,100420.0,100410.0,0.55720537]
[1733939434340,0.02,100420.0,100410.0,0.55720536]
[1733939434574,0.02,100420.0,100410.0,0.55720534]
[1733939434786,0.02,100420.0,100410.0,0.71020533]
[1733939435057,0.02,100420.0,100410.0,0.81020532]
[1733939435312,0.02,100420.0,100410.0,0.81020528]
[1733939435544,0.02,100420.0,100410.0,0.81020519]
[1733939435771,0.02,100420.0,100410.0,0.81020516]
[1733939435987,0.02,100420.0,100410.0,0.81320514]
[1733939436445,0.02,100420.0,100410.0,0.84504018]
[1733939436726,0.02,100420.0,100410.0,0.84504015]
[1733939436969,0.02,100420.0,100410.0,0.86536057]
[1733939437234,0.02,100420.0,100410.0,0.86536055]
[1733939437483,0.02,100420.0,100410.0,0.86536053]
[1733939437729,0.02,100420.0,100410.0,0.86536052]
[1733939438102,0.02,100420.0,100410.0,0.86536051]
[1733939438354,0.02,100420.0,100410.0,0.86536049]
[1733939438568,0.02,100420.0,100410.0,0.86536046]
[1733939438778,0.02,100420.0,100410.0,0.86536044]
[1733939438983,0.02,100420.0,100410.0,0.86536043]
[1733939439192,0.02,100420.0,100410.0,0.86536042]
[1733939439425,0.02,100420.0,100410.0,0.86536039]
[1733939439627,0.0057472,100420.0,100410.0,0.86536037]
[1733939439845,1e-08,100420.0,100410.0,0.86536035]
[1733939440045,1e-08,100420.0,100410.0,0.86536033]
[1733939440269,1e-08,100420.0,100410.0,0.86536032]
[1733939440443,0.0004,100430.0,100410.0,0.8653603]
[1733939440643,0.0004,100430.0,100420.0,0.301094]
[1733939440838,0.0004,100430.0,100420.0,0.30849904]
[1733939441263,0.077,100430.0,100420.0,0.30849902]
[1733939441467,0.077,100430.0,100420.0,0.30849901]
[1733939441678,0.077,100430.0,100420.0,0.308499]
[1733939441897,0.077,100430.0,100420.0,0.30849899]
[1733939442306,0.077,100430.0,100420.0,0.30849898]
[1733939442519,0.077,100430.0,100420.0,0.30849897]
[1733939442732,0.077,100430.0,100420.0,0.30849896]
[1733939442941,0.077,100430.0,100420.0,0.30849895]
[1733939443159,0.077,100430.0,100420.0,0.30849894]
[1733939443359,0.077,100430.0,100420.0,0.30849893]
[1733939443571,0.0004,100430.0,100420.0,0.30849892]
[1733939443774,0.0004,100430.0,100420.0,0.30849891]
[1733939443982,0.0004,100430.0,100420.0,0.3084989]
[1733939444185,0.0004,100430.0,100420.0,0.30849889]
[1733939444401,0.0004,100430.0,100420.0,0.30849887]
[1733939444617,0.24356492,100430.0,100420.0,0.00840041]
[1733939444815,0.1254,100430.0,100420.0,0.00840041]
[1733939445027,0.324543,100430.0,100420.0,0.00840041]
[1733939445229,0.33396727,100430.0,100420.0,0.00840041]
[1733939445664,0.302743,100430.0,100420.0,0.00840041]
[1733939447735,0.22176492,100430.0,100420.0,0.20819041]
[1733939447944,0.22176492,100430.0,100420.0,0.20819039]
[1733939448155,0.22176492,100430.0,100420.0,0.20819038]
[1733939448361,0.22176492,100430.0,100420.0,0.20819037]
[1733939448570,0.22176492,100430.0,100420.0,0.20819036]
[1733939448781,0.22176492,100430.0,100420.0,0.30849881]
[1733939448987,0.22176492,100430.0,100420.0,0.30849879]
[1733939449192,0.22176492,100430.0,100420.0,0.30849877]
[1733939449431,0.22176492,100430.0,100420.0,0.30849875]
[1733939449647,0.22176492,100430.0,100420.0,0.30849874]
[1733939449873,0.22176492,100430.0,100420.0,0.30849872]
[1733939450117,0.22176492,100430.0,100420.0,0.30849871]
[1733939450366,0.22176492,100430.0,100420.0,0.3084987]
[1733939450914,0.22176492,100430.0,100420.0,0.30849869]
[1733939451143,0.22176492,100430.0,100420.0,0.30849868]
[1733939451679,0.11816492,100440.0,100430.0,0.049785]
[1733939451972,0.11816492,100440.0,100430.0,0.05818522]
[1733939452233,0.11816492,100440.0,100430.0,0.25796822]
[1733939452480,0.19366492,100450.0,100440.0,0.19978]
[1733939453793,0.20221767,100450.0,100440.0,0.20078]
[1733939454536,0.20621767,100450.0,100440.0,0.20078]
[1733939454750,0.20621767,100450.0,100440.0,0.30208398]
[1733939454964,0.20621767,100450.0,100440.0,0.30108845]
[1733939455585,0.20221767,100450.0,100440.0,0.30108845]
[1733939456042,0.08005275,100450.0,100440.0,0.30008845]
[1733939456247,0.00495275,100450.0,100440.0,0.3084884]
[1733939456468,0.00495275,100450.0,100440.0,0.30848837]
[1733939456683,0.00495275,100450.0,100440.0,0.30848835]
[1733939456895,0.00495275,100450.0,100440.0,0.30848833]
[1733939457112,0.00495275,100450.0,100440.0,0.30848832]
[1733939457330,0.00095275,100450.0,100440.0,0.3084883]
[1733939457955,0.00095275,100450.0,100440.0,0.30848829]
[1733939458162,0.00095275,100450.0,100440.0,0.30848828]
[1733939458590,0.00095275,100450.0,100440.0,0.30848826]
[1733939458998,0.00095275,100450.0,100440.0,0.30848825]
[1733939459208,0.19431767,100450.0,100440.0,0.30848825]
[1733939459417,0.19431767,100450.0,100440.0,0.30848823]
[1733939459660,0.19431767,100450.0,100440.0,0.30848821]
[1733939459884,0.19431767,100450.0,100440.0,0.3084882]
[1733939460093,0.19431767,100450.0,100440.0,0.30848818]
[1733939460303,0.19431767,100450.0,100440.0,0.30848817]
[1733939460512,0.19431767,100450.0,100440.0,0.30848816]
[1733939460720,0.19431767,100450.0,100440.0,0.30848815]
[1733939460950,0.19431767,100450.0,100440.0,0.30848814]
[1733939461178,0.19431767,100450.0,100440.0,0.30848813]
[1733939461389,0.19431767,100450.0,100440.0,0.30848812]
[1733939461599,0.19431767,100450.0,100440.0,0.3084881]
[1733939461804,0.19431767,100450.0,100440.0,0.30848809]
[1733939462013,0.19431767,100450.0,100440.0,0.30848807]
[1733939462262,0.19431767,100450.0,100440.0,0.30848806]
[1733939462484,0.19431767,100450.0,100440.0,0.30848805]
[1733939462690,0.19431767,100450.0,100440.0,0.30848804]
[1733939463105,0.19431767,100450.0,100440.0,0.30848803]
[1733939463315,0.00095275,100450.0,100440.0,0.30848803]
[1733939463533,0.00095275,100450.0,100440.0,0.30848801]
[1733939463739,0.00095275,100450.0,100440.0,0.30848799]
[1733939463945,0.00095275,100450.0,100440.0,0.30848797]
[1733939464151,0.00095275,100450.0,100440.0,0.30848796]
[1733939464571,0.00095275,100450.0,100440.0,0.30848794]
[1733939464795,0.00095275,100450.0,100440.0,0.30848792]
[1733939465019,0.00095275,100450.0,100440.0,0.30848791]
[1733939465234,0.00095275,100450.0,100440.0,0.3084879]
[1733939465654,0.00095275,100450.0,100440.0,0.30848789]
[1733939466292,0.00095275,100450.0,100440.0,0.30848788]
[1733939466499,0.00095275,100450.0,100440.0,0.32856829]
[1733939466922,0.00095275,100450.0,100440.0,0.32856828]
[1733939467351,0.00095275,100450.0,100440.0,0.47856828]
[1733939467558,0.00095275,100450.0,100440.0,1.02704867]
[1733939467769,0.00095275,100450.0,100440.0,1.02704856]
[1733939467972,0.00095275,100450.0,100440.0,1.02704849]
[1733939468180,0.00095275,100450.0,100440.0,1.02704845]
[1733939468389,0.00095275,100450.0,100440.0,1.2051767]
[1733939468652,0.00095275,100450.0,100440.0,1.02704842]
[1733939468869,7.5e-07,100450.0,100440.0,1.60597201]
[1733939469077,7.5e-07,100450.0,100440.0,1.24971534]
[1733939469289,7.5e-07,100450.0,100440.0,1.27971524]
[1733939469495,7.5e-07,100450.0,100440.0,1.27971518]
[1733939469703,0.0116515,100470.0,100460.0,0.15]
[1733939469936,0.01181718,100470.0,100460.0,0.63861548]
[1733939470143,0.01181718,100470.0,100460.0,0.54865085]
[1733939470601,0.01181718,100470.0,100460.0,0.30007945]
[1733939471270,0.2050821,100470.0,100460.0,0.049771]
[1733939471698,0.2050821,100470.0,100460.0,0.054771]
[1733939472115,0.2050821,100470.0,100460.0,0.15607481]
[1733939472116,0.08691718,100470.0,100460.0,0.15607481]
[1733939472323,0.08691718,100470.0,100460.0,0.15507945]
[1733939472548,0.08691718,100470.0,100460.0,0.30507945]
[1733939472764,0.01281718,100470.0,100460.0,0.31207945]
[1733939472977,0.01181718,100470.0,100460.0,0.69866035]
[1733939473165,0.01181718,100470.0,100460.0,0.70566035]